bitfinex-derivatives/quotes_SOLF0:USTF0_20251002
["timestamp","ask_amount","ask_price","bid_price","bid_amount"]
[1759376874569,7.09621785,224.1,224.04,1.37390092]
[1759376874865,4.0141,224.1,224.04,1.37390092]
[1759376875065,7.83,224.13,224.05,7.44]
[1759376875260,3.09014156,224.12,224.05,7.44]
[1759376875561,3.09014156,224.12,224.04,1.37390092]
[1759376875562,7.83,224.13,224.08,1.37390092]
[1759376875768,7.83,224.13,224.09,7.44]
[1759376875957,7.83,224.13,224.08,1.37390092]
[1759376876163,4.0133,224.15,224.09,7.44]
[1759376876364,3.09152176,224.14,224.09,7.44]
[1759376876565,7.72,224.18,224.08,1.37390092]
[1759376876859,7.72,224.18,224.06,4.0146]
[1759376876860,3.09136061,224.17,224.1,1.37390092]
[1759376877067,3.09136061,224.16,224.1,1.37390092]
[1759376877255,3.09136061,224.15,224.11,7.44]
[1759376877456,7.72,224.18,224.11,7.44]
[1759376877656,7.104076,224.17,224.11,7.44]
[1759376877869,10.811276,224.16,224.11,7.44]
[1759376878067,4.0128,224.17,224.12,1.37390092]
[1759376878561,3.09058609,224.16,224.13,7.44]
[1759376878957,10.81058609,224.16,224.11,1.37390092]
[1759376879264,10.81058609,224.16,224.12,7.44]
[1759376879571,7.72,224.16,224.12,7.44]
[1759376881464,7.72,224.16,224.1,1.37390092]
[1759376881667,7.72,224.16,224.11,7.44]
[1759376882072,7.72,224.16,224.1,8.81390092]
[1759376882966,7.72,224.16,224.12,1.37390092]
[1759376883274,7.72,224.16,224.13,7.44]
[1759376883771,7.72,224.16,224.12,1.37390092]
[1759376884073,7.72,224.14,224.1,7.44]
[1759376884262,7.72,224.14,224.07,1.37390092]
[1759376884467,9.09390092,224.14,224.05,7.44]
[1759376884675,11.734,224.11,224.05,7.44]
[1759376885766,7.72,224.11,224.05,7.44]
[1759376886670,64.57713393,224.16,224.05,7.44]
[1759376886671,7.72,224.09,224.05,7.44]
[1759376888873,4.0145,224.08,224.01,84.72973393]
[1759376889070,7.72,224.09,224.01,82.58]
[1759376889470,7.72,224.09,224.0,7.44]
[1759376889669,11.7344,224.09,224.0,7.44]
[1759376890675,7.72,224.13,224.01,7.44]
[1759376890869,7.72,224.13,224.04,7.44]
[1759376891574,11.7335,224.13,224.04,7.44]
[1759376891867,7.72,224.13,224.04,7.44]
[1759376893575,4.0139,224.11,224.04,7.44]
[1759376894971,7.72,224.1,224.04,7.44]
[1759376895877,7.72,224.08,224.0,117.78]
[1759376896471,7.72,224.08,224.0,7.44]
[1759376897477,4.0146,224.07,224.0,7.44]
[1759376898075,7.72,224.04,223.97,2.14973393]
[1759376898575,7.72,224.04,223.98,7.44]
[1759376898779,14.82982935,224.08,223.98,11.4562]
[1759376899080,7.72,224.08,223.98,11.4562]
[1759376899281,3.09533037,224.07,223.98,11.4562]
[1759376899975,7.72,224.06,223.98,11.4562]
[1759376900472,7.72,224.07,223.98,7.44]
[1759376900677,7.72,224.05,223.94,7.44]
[1759376900876,7.72,224.03,223.94,7.44]
[1759376901571,4.0157,224.01,223.94,7.44]
[1759376903484,7.37,224.0,223.94,7.44]
[1759376903681,11.3061,223.99,223.91,7.93]
[1759376905086,4.0164,223.97,223.91,7.93]
[1759376906792,7.29,223.99,223.91,7.93]
[1759376907895,4.0162,223.98,223.91,7.93]
[1759376908393,4.0162,223.98,223.86,7.93]
[1759376908394,7.29,223.95,223.86,7.93]
[1759376908893,10.37923951,223.95,223.86,7.93]
[1759376909090,7.29,223.95,223.86,7.93]
[1759376909288,11.3069,223.95,223.86,7.93]
[1759376909482,2.14973393,223.97,223.86,7.93]
[1759376909483,62.4876,223.94,223.86,7.93]
[1759376909683,7.29,223.93,223.82,7.93]
[1759376909888,4.0175,223.91,223.82,7.93]
[1759376910089,62.4817,223.96,223.82,7.93]
[1759376910090,7.29,223.9,223.82,7.93]
[1759376912193,4.0179,223.89,223.82,7.93]
[1759376912491,88.1,223.97,223.82,7.93]
[1759376912697,7.29,223.96,223.85,7.93]
[1759376913690,4.0169,223.95,223.85,7.93]
[1759376913892,7.29,223.96,223.85,7.93]
[1759376914596,7.29,223.96,223.87,7.93]
[1759376916298,7.29,223.96,223.87,11.9482]
[1759376916802,11.3066,223.96,223.87,7.93]
[1759376920599,7.29,223.96,223.88,4.0179]
[1759376921098,7.29,223.96,223.87,7.93]
[1759376921901,4.0168,223.95,223.87,7.93]
[1759376926503,4.0168,223.95,223.87,11.9481]
[1759376929202,4.0168,223.95,223.87,7.93]
[1759376929408,7.29,223.94,223.87,7.93]
[1759376931012,4.0168,223.95,223.87,7.93]
[1759376931310,7.29,223.97,223.85,7.93]
[1759376931513,7.29,223.97,223.88,7.93]
[1759376931912,7.29,223.97,223.9,7.93]
[1759376933215,7.29,224.0,223.91,4.0174]
[1759376933416,7.29,224.0,223.9,7.93]
[1759376934715,4.0162,223.98,223.9,7.93]
[1759376934910,11.3862,223.98,223.9,7.93]
[1759376937617,11.3862,223.98,223.9,11.9476]
[1759376937812,7.37,223.98,223.9,11.9476]
[1759376938020,7.37,223.98,223.9,7.93]
[1759376938218,62.4492,224.08,223.94,7.17]
[1759376938219,7.37,224.07,223.94,7.17]
[1759376938420,7.37,224.05,223.94,7.17]
[1759376938715,7.37,224.05,223.96,7.17]
[1759376938918,7.37,224.05,223.97,4.0164]
[1759376940621,11.385,224.05,223.97,4.0164]
[1759376940811,3.09171795,224.04,223.97,4.0164]
[1759376941015,3.09171795,224.04,223.96,7.17]
[1759376941217,7.37,224.05,223.96,7.17]
[1759376941617,69.8346,224.02,223.92,7.17]
[1759376941818,69.8346,224.02,223.88,33.12]
[1759376941819,3.09171795,224.01,223.88,33.12]
[1759376942018,7.37,224.0,223.89,7.17]
[1759376942218,7.37,224.0,223.89,11.1876]
[1759376942413,10.46171795,224.0,223.89,7.17]
[1759376942722,7.37,224.0,223.89,7.17]
[1759376943519,10.45782752,224.0,223.89,7.17]
[1759376943719,11.3859,224.0,223.9,4.0175]
[1759376944522,11.3859,224.0,223.91,7.17]
[1759376944716,11.3859,224.0,223.91,11.1873]
[1759376945925,7.37,223.97,223.91,7.17]
[1759376946321,7.37,223.97,223.88,7.17]
[1759376947217,10.46257015,223.97,223.88,7.17]
[1759376947427,7.37,223.97,223.88,7.17]
[1759376947621,4.0166,223.96,223.88,7.17]
[1759376948228,4.0166,223.96,223.88,8.547707]
[1759376948430,7.37,223.95,223.88,8.547707]
[1759376949021,4.0166,223.96,223.9,8.547707]
[1759376949425,3.0944472,223.97,223.9,8.547707]
[1759376949626,7.37,223.98,223.9,8.547707]
[1759376949927,7.37,223.98,223.92,1.377707]
[1759376950730,7.37,223.98,223.92,5.395007]
[1759376953832,7.37,223.98,223.92,1.377707]
[1759376954127,7.37,223.98,223.9,7.17]
[1759376954330,7.37,223.98,223.91,1.377707]
[1759376955931,10.46511362,223.98,223.91,1.377707]
[1759376956133,7.37,223.98,223.91,1.377707]
[1759376957335,7.37,223.98,223.92,4.0173]
[1759376958227,4.016,223.99,223.93,8.547707]
[1759376958432,7.37,224.02,223.95,8.547707]
[1759376958637,3.09751279,224.01,223.97,1.377707]
[1759376958833,7.37,224.02,223.98,7.17]
[1759376959034,3.09730456,224.01,223.98,7.17]
[1759376959235,7.37,224.02,223.98,7.17]
[1759376959437,10.46694132,224.01,223.98,7.17]
[1759376959737,7.37,224.05,223.98,7.17]
[1759376960532,7.37,224.05,223.98,11.1862]
[1759376960741,7.37,224.05,223.99,1.377707]
[1759376961236,7.53,224.09,224.01,1.377707]
[1759376961445,7.53,224.09,224.01,8.957707]
[1759376962336,8.907707,224.09,224.01,7.58]
[1759376962533,8.907707,224.09,223.97,8.957707]
[1759376962534,7.53,224.04,223.97,8.957707]
[1759376968249,7.53,224.04,223.97,7.58]
[1759376968448,7.53,224.04,223.97,8.957707]
[1759376969351,7.22,224.01,223.93,8.767707]
[1759376969552,1.377707,224.0,223.91,1.377707]
[1759376969853,7.22,223.99,223.91,1.377707]
[1759376970450,7.22,223.97,223.89,7.39]
[1759376970648,7.22,223.95,223.86,1.377707]
[1759376971550,4.0172,223.93,223.86,1.377707]
[1759376973460,7.22,223.95,223.86,1.377707]
[1759376973755,8.597707,223.99,223.9,1.377707]
[1759376974251,8.597707,223.99,223.89,7.39]
[1759376974457,8.597707,223.99,223.89,8.767707]
[1759376974653,12.613907,223.99,223.89,12.785507]
[1759376977160,12.613907,223.99,223.92,7.39]
[1759376977563,4.97431031,224.07,223.93,4.0171]
[1759376977765,8.597707,224.06,223.96,8.767707]
[1759376978166,8.597707,224.06,223.89,4.95764499]
[1759376978167,7.22,223.99,223.89,4.95764499]
[1759376978465,7.22,223.99,223.88,7.39]
[1759376978466,7.22,223.96,223.85,1.377707]
[1759376978661,7.22,223.96,223.87,5.395807]
[1759376978967,7.22,223.96,223.89,1.377707]
[1759376979565,8.597707,224.0,223.9,7.39]
[1759376980459,8.597707,224.0,223.91,1.377707]
[1759376980669,8.597707,224.0,223.91,5.395007]
[1759376984965,7.22,224.0,223.93,1.377707]
[1759376989570,7.22,224.0,223.92,7.39]
[1759376989571,12.613607,224.0,223.92,7.39]
[1759376989768,7.22,223.94,223.86,4.95764499]
[1759376990070,7.22,223.94,223.88,1.377707]
[1759376992073,7.22,223.96,223.89,4.0178]
[1759376996477,7.22,223.96,223.88,1.377707]
[1759376996478,7.4,223.95,223.86,7.39]
[1759376997579,4.0169,223.94,223.86,7.39]
[1759376997781,7.4,223.93,223.86,7.39]
[1759376998977,11.4165,223.97,223.88,7.92]
[1759376999176,12.794207,223.97,223.88,7.92]
[1759376999377,8.777707,223.97,223.88,7.92]
[1759377000483,4.0168,223.95,223.88,7.92]
[1759377000684,7.4,223.93,223.84,13.316307]
[1759377003482,7.4,223.93,223.84,5.396307]
[1759377003786,7.4,223.93,223.85,7.92]
[1759377004783,11.4172,223.93,223.85,7.92]
[1759377006190,7.4,223.93,223.86,9.297707]
[1759377007082,7.4,223.93,223.86,7.92]
[1759377007981,7.4,223.96,223.88,7.92]
[1759377008188,3.07892924,223.95,223.88,7.92]
[1759377008383,10.47892924,223.96,223.88,7.92]
[1759377009287,2.15268109,224.0,223.91,7.92]
[1759377009288,7.4,224.0,223.91,7.92]
[1759377009490,7.4,224.0,223.92,7.92]
[1759377009690,7.4,224.0,223.94,7.92]
[1759377010488,7.4,224.0,223.96,7.92]
[1759377010886,7.4,224.05,223.96,7.92]
[1759377011690,11.415,224.05,223.96,7.92]
[1759377012992,7.4,224.02,223.94,110.16]
[1759377013685,7.4,224.02,223.93,7.92]
[1759377016390,7.4,224.02,223.94,7.92]
[1759377017291,7.4,224.0,223.9,16.91218559]
[1759377017490,7.4,224.0,223.9,11.9376]
[1759377018094,4.016,223.99,223.9,11.9376]
[1759377020398,4.016,223.99,223.9,100.1976]
[1759377020600,4.0164,223.97,223.9,7.92]
[1759377020801,7.4,223.96,223.9,7.92]
[1759377021295,62.4667,224.02,223.9,7.92]
[1759377021296,4.0159,224.0,223.9,7.92]
[1759377022600,11.2959,224.0,223.91,4.0174]
[1759377025203,11.2959,224.0,223.92,7.88]
[1759377027607,4.0162,223.98,223.92,7.88]
[1759377028204,11.5862,223.98,223.92,7.88]
[1759377032009,7.57,223.98,223.92,7.88]
[1759377032309,11.5858,224.01,223.92,7.88]
[1759377032619,7.57,224.01,223.93,7.88]
[1759377033809,7.57,224.01,223.94,4.0169]
[1759377034003,11.585,224.05,223.93,7.88]
[1759377034708,4.0153,224.03,223.93,11.8971]
[1759377034905,7.57,224.02,223.94,110.2]
[1759377035509,7.57,224.02,223.95,7.88]
[1759377035914,4.0153,224.03,223.91,7.88]
[1759377035915,7.57,224.03,223.91,7.88]
[1759377036109,2.15268109,224.03,223.91,51.76]
[1759377036412,7.57,224.02,223.91,7.88]
[1759377037608,4.0159,224.0,223.91,7.88]
[1759377038009,7.57,223.99,223.91,7.88]
[1759377039312,7.57,223.99,223.93,7.88]
[1759377041514,7.57,224.03,223.95,7.88]
[1759377043416,7.57,224.03,223.96,4.0166]
[1759377045520,4.0155,224.02,223.95,7.88]
[1759377046822,7.57,224.03,223.95,7.88]
[1759377050219,7.57,224.03,223.95,11.8966]
[1759377050824,11.5855,224.03,223.95,7.88]
[1759377051017,7.57,224.03,223.92,4.97458559]
[1759377051223,7.57,224.05,223.92,7.88]
[1759377051524,62.4541,224.06,223.92,7.88]
[1759377051525,11.5857,224.01,223.92,7.88]
[1759377055714,11.5857,224.01,223.92,11.8971]
[1759377059527,7.84,224.0,223.92,11.8971]
[1759377060225,7.84,224.0,223.92,7.88]
[1759377061427,7.84,224.0,223.9,115.09458559]
[1759377061428,9.99268109,224.0,223.89,4.97458559]
[1759377061732,7.84,223.99,223.88,7.62]
[1759377062126,3.06650437,223.98,223.88,7.62]
[1759377062329,7.84,223.99,223.88,7.62]
[1759377062528,7.84,223.97,223.88,7.62]
[1759377062731,4.0166,223.96,223.88,7.62]
[1759377063232,7.84,223.97,223.89,4.0178]
[1759377063433,7.84,223.97,223.9,7.62]
[1759377067937,4.0156,224.02,223.92,7.62]
[1759377068135,10.91213837,224.01,223.92,7.62]
[1759377068337,3.07213837,224.0,223.92,7.62]
[1759377068635,7.84,224.01,223.92,7.62]
[1759377068835,3.07197651,224.0,223.92,7.62]
[1759377069036,7.84,224.01,223.92,7.62]
[1759377069337,3.07205411,224.0,223.92,7.62]
[1759377069535,11.8558,224.01,223.92,7.62]
[1759377069830,3.07208081,224.0,223.92,7.62]
[1759377070033,11.8558,224.01,223.92,7.62]
[1759377070236,4.44944793,224.0,223.92,7.62]
[1759377070434,1.37729191,224.0,223.92,7.62]
[1759377070831,13.23309191,224.01,223.92,7.62]
[1759377071034,3.07214521,224.0,223.92,7.62]
[1759377071232,13.23309191,224.01,223.92,7.62]
[1759377071535,3.07226846,224.0,223.92,7.62]
[1759377071728,13.23309191,224.01,223.92,7.62]
[1759377071927,3.07226846,224.0,223.92,7.62]
[1759377072130,9.21729191,224.01,223.93,4.017]
[1759377072434,7.84,224.01,223.94,7.62]
[1759377073536,3.07257965,224.0,223.94,7.62]
[1759377073731,7.84,224.01,223.94,7.62]
[1759377074031,3.0725286,224.0,223.94,7.62]
[1759377074237,7.84,224.01,223.94,7.62]
[1759377074433,7.84,223.99,223.9,83.6575]
[1759377074838,7.84,223.99,223.9,7.62]
[1759377074839,3.07295364,223.98,223.9,7.62]
[1759377075134,1.37729191,224.0,223.9,7.62]
[1759377075135,7.84,223.97,223.9,7.62]
[1759377076734,4.0166,223.96,223.9,7.62]
[1759377078940,4.0166,223.96,223.88,1.37729191]
[1759377078941,7.84,223.95,223.88,1.37729191]
[1759377079141,7.84,223.95,223.88,7.62]
[1759377080040,11.8569,223.95,223.88,7.62]
[1759377080240,9.21729191,223.95,223.88,7.62]
[1759377081534,4.0171,223.93,223.88,7.62]
[1759377081735,7.54,223.92,223.88,7.62]
[1759377081936,4.0171,223.93,223.88,7.62]
[1759377082340,7.54,223.92,223.88,7.62]
[1759377082642,4.0171,223.93,223.88,7.62]
[1759377082834,7.54,223.92,223.88,7.62]
[1759377083438,4.0171,223.93,223.88,7.62]
[1759377083634,7.23,223.92,223.88,7.62]
[1759377084036,11.2475,223.91,223.83,7.17]
[1759377084248,11.2475,223.91,223.83,117.25]
[1759377084638,11.2475,223.91,223.84,7.17]
[1759377086445,62.4818,223.96,223.82,9.21650615]
[1759377086446,7.23,223.88,223.82,8.54729191]
[1759377087249,7.23,223.88,223.82,7.17]
[1759377089849,7.23,223.88,223.8,440.43669191]
[1759377089850,4.0182,223.87,223.8,326.33729191]
[1759377090050,7.23,223.86,223.8,324.96]
[1759377093755,7.23,223.86,223.81,7.17]
[1759377094152,7.23,223.86,223.8,324.96]
[1759377094344,7.23,223.86,223.81,7.17]
[1759377094954,7.23,223.86,223.8,324.96]
[1759377095154,7.23,223.86,223.8,332.13]
[1759377097553,5.39579191,223.85,223.79,110.08]
[1759377097758,8.60729191,223.86,223.8,7.17]
[1759377098057,7.23,223.86,223.8,7.17]
[1759377098459,7.23,223.86,223.8,117.23]
[1759377099559,11.2484,223.86,223.8,117.23]
[1759377102062,7.23,223.86,223.8,117.23]
[1759377103061,7.23,223.86,223.82,7.17]
[1759377104351,1.37729191,223.87,223.82,7.17]
[1759377104557,7.23,223.86,223.82,7.17]
[1759377104861,5.39559191,223.87,223.82,7.17]
[1759377105052,7.23,223.86,223.82,7.17]
[1759377105962,5.39559191,223.87,223.82,7.17]
[1759377106161,7.23,223.86,223.82,7.17]
[1759377106661,5.39559191,223.87,223.82,7.17]
[1759377107360,7.23,223.85,223.82,7.17]
[1759377109058,4.0185,223.86,223.8,110.06]
[1759377109260,4.0185,223.86,223.81,7.17]
[1759377109460,8.60729191,223.89,223.81,7.17]
[1759377110560,8.60729191,223.89,223.81,11.1891]
[1759377111260,7.23,223.89,223.82,7.17]
[1759377118669,9.01729191,223.86,223.8,110.06]
[1759377118964,1.37729191,223.86,223.8,110.06]
[1759377119166,7.64,223.85,223.8,117.71]
[1759377119466,7.64,223.85,223.81,7.65]
[1759377120168,7.64,223.85,223.8,110.06]
[1759377120471,7.64,223.85,223.81,7.65]
[1759377121062,5.39579191,223.86,223.81,7.65]
[1759377121263,7.64,223.85,223.81,7.65]
[1759377121973,11.6588,223.84,223.81,7.65]
[1759377124969,4.0192,223.82,223.77,7.65]
[1759377125174,7.64,223.89,223.76,7.65]
[1759377125374,1.37729191,223.87,223.8,7.65]
[1759377125576,5.39549191,223.87,223.8,7.65]
[1759377125976,7.64,223.89,223.8,7.65]
[1759377127176,1.37729191,223.9,223.82,4.0189]
[1759377127475,4.4580711,223.92,223.83,7.65]
[1759377127675,3.08077919,223.91,223.85,7.65]
[1759377127872,1.37729191,223.92,223.85,7.65]
[1759377128072,3.08067184,223.91,223.85,7.65]
[1759377128269,1.37729191,223.92,223.85,7.65]
[1759377128472,10.72133299,223.97,223.9,7.65]
[1759377128676,3.08133299,223.96,223.9,7.65]
[1759377128882,3.08133299,223.95,223.89,9.02729191]
[1759377129080,10.72133299,223.94,223.9,7.65]
[1759377129281,7.64,223.94,223.9,7.65]
[1759377129476,11.6569,223.94,223.9,7.65]
[1759377130176,3.0814341,223.93,223.85,1.37729191]
[1759377130378,11.6569,223.94,223.85,29.03729191]
[1759377130577,3.08090565,223.93,223.85,29.03729191]
[1759377130776,11.6569,223.94,223.85,1.37729191]
[1759377130977,3.08090565,223.93,223.85,1.37729191]
[1759377131180,11.6569,223.94,223.85,1.37729191]
[1759377131374,3.0808564,223.93,223.85,1.37729191]
[1759377131580,11.6569,223.94,223.85,1.37729191]
[1759377131879,3.0808564,223.93,223.85,1.37729191]
[1759377132082,11.6569,223.94,223.85,1.37729191]
[1759377132269,3.08050145,223.93,223.84,92.11]
[1759377132580,11.6569,223.94,223.84,92.11]
[1759377132781,3.08050145,223.93,223.84,92.11]
[1759377132981,11.6569,223.94,223.84,92.11]
[1759377133285,3.08050145,223.93,223.84,92.11]
[1759377133584,11.6569,223.94,223.86,7.65]
[1759377135081,7.64,223.94,223.86,7.65]
[1759377135679,10.71910315,223.94,223.86,7.65]
[1759377135881,7.64,223.94,223.86,7.65]
[1759377137284,7.64,223.94,223.87,4.0182]
[1759377137584,7.64,223.94,223.88,7.65]
[1759377141890,7.21,223.98,223.9,7.95]
[1759377142083,10.28576388,223.98,223.9,7.95]
[1759377142388,7.21,223.98,223.9,7.95]
[1759377144285,7.21,223.98,223.91,7.19]
[1759377144884,11.9758,224.01,223.92,4.0173]
[1759377145093,7.96,224.01,223.93,7.19]
[1759377145388,4.0159,224.0,223.93,7.19]
[1759377145589,7.96,223.99,223.93,7.19]
[1759377146189,4.0155,224.03,223.93,7.19]
[1759377146395,3.0722395,224.02,223.93,7.19]
[1759377146597,7.96,224.03,223.96,4.0165]
[1759377146897,7.96,224.03,223.97,7.19]
[1759377149295,11.02884131,224.03,223.94,7.19]
[1759377149497,7.96,224.03,223.95,7.19]
[1759377149895,7.96,224.03,223.96,4.0165]
[1759377150097,7.96,224.03,223.97,7.19]
[1759377152303,11.9748,224.06,223.97,7.19]
[1759377155803,7.96,224.06,223.99,7.19]
[1759377157300,7.96,224.06,224.0,4.0158]
[1759377157504,7.96,224.06,224.01,7.19]
[1759377157804,7.96,224.06,224.0,11.2058]
[1759377160908,11.9744,224.09,224.01,7.19]
[1759377171221,7.96,224.09,223.97,7.19]
[1759377171521,7.96,224.07,223.94,7.19]
[1759377172020,7.96,224.02,223.94,7.19]
[1759377172522,7.96,224.0,223.94,7.19]
[1759377192344,7.96,224.0,223.94,8.56710776]
[1759377194346,7.96,224.0,223.92,4.0171]
[1759377194347,1.37710776,224.02,223.92,1.37710776]
[1759377194540,10.26853193,224.01,223.92,1.37710776]
[1759377194740,7.2,223.99,223.92,1.37710776]
[1759377195042,7.2,223.99,223.92,9.25710776]
[1759377195343,10.26859721,223.99,223.92,7.88]
[1759377195543,7.2,223.99,223.91,36.68]
[1759377195841,4.0162,223.98,223.91,36.68]
[1759377196043,11.2162,223.98,223.91,36.68]
[1759377197244,7.2,223.97,223.91,36.68]
[1759377198045,7.2,223.97,223.9,1.37710776]
[1759377198245,8.57710776,223.97,223.89,11.8977]
[1759377198441,7.2,223.96,223.89,11.8977]
[1759377199246,11.2166,223.96,223.89,7.88]
[1759377199549,7.2,223.94,223.89,7.88]
[1759377199843,1.37710776,223.95,223.89,7.88]
[1759377200246,7.2,223.93,223.89,7.88]
[1759377200648,4.017,223.94,223.89,7.88]
[1759377200844,7.2,223.93,223.89,7.88]
[1759377201048,4.017,223.94,223.89,7.88]
[1759377201346,40.10290819,224.5,223.91,7.61]
[1759377201347,7.78,223.98,223.91,7.61]
[1759377204547,11.7962,223.98,223.91,7.61]
[1759377204747,7.34,223.96,223.88,13.08510776]
[1759377205549,11.3566,223.96,223.88,13.08510776]
[1759377208658,11.3566,223.96,223.88,9.06710776]
[1759377211667,11.3566,223.96,223.88,7.69]
[1759377214870,11.3566,223.96,223.86,4.0183]
[1759377214871,1.37710776,223.93,223.83,7.69]
[1759377215171,7.34,223.88,223.78,7.69]
[1759377215371,7.34,223.88,223.79,1.37710776]
[1759377215563,7.34,223.86,223.79,1.37710776]
[1759377215758,7.34,223.86,223.78,7.69]
[1759377215966,7.34,223.86,223.78,9.06710776]
[1759377221168,8.71710776,223.86,223.78,7.69]
[1759377222765,7.34,223.86,223.78,9.06710776]
[1759377226268,4.0186,223.85,223.78,7.69]
[1759377226473,7.34,223.82,223.75,9.06710776]
[1759377226673,7.34,223.82,223.76,109.58]
[1759377229471,7.34,223.82,223.76,110.95710776]
[1759377229877,7.34,223.82,223.77,7.69]
[1759377230073,7.34,223.82,223.76,110.95710776]
[1759377230373,1.37710776,223.87,223.79,7.69]
[1759377230677,4.0186,223.85,223.79,7.69]
[1759377231279,7.34,223.84,223.79,7.69]
[1759377231481,5.39570776,223.85,223.79,7.69]
[1759377231880,7.34,223.84,223.79,7.69]
[1759377232574,5.39570776,223.85,223.79,7.69]
[1759377232881,7.34,223.84,223.79,7.69]
[1759377233080,5.39570776,223.85,223.79,7.69]
[1759377233281,7.34,223.84,223.79,7.69]
[1759377233471,5.39570776,223.85,223.79,7.69]
[1759377234078,7.93,223.84,223.79,7.69]
[1759377234783,13.32570776,223.85,223.78,7.7]
[1759377235684,11.9486,223.85,223.78,7.7]
[1759377235884,7.93,223.85,223.79,7.7]
[1759377236084,7.93,223.85,223.79,9.07710776]
[1759377239085,7.93,223.85,223.79,7.7]
[1759377239280,11.9487,223.85,223.79,7.7]
[1759377241084,4.0189,223.84,223.79,7.7]
[1759377241286,7.93,223.83,223.77,1.37710776]
[1759377241486,7.93,223.83,223.76,117.28]
[1759377241686,7.93,223.83,223.76,118.65710776]
[1759377241891,11.9491,223.83,223.76,118.65710776]
[1759377244689,1.37710776,223.85,223.77,7.7]
[1759377244690,11.9493,223.81,223.77,7.7]
[1759377244885,11.9493,223.81,223.76,109.58]
[1759377245283,11.9493,223.81,223.77,7.7]
[1759377245685,11.9493,223.81,223.76,109.58]
[1759377245888,11.9493,223.81,223.77,7.7]
[1759377246492,4.0193,223.81,223.77,7.7]
[1759377246689,4.0193,223.81,223.76,109.58]
[1759377246890,11.9493,223.81,223.76,109.58]
[1759377247190,11.9493,223.81,223.77,7.7]
[1759377247580,11.9493,223.81,223.76,109.58]
[1759377247986,11.9493,223.81,223.77,7.7]
[1759377248193,11.9493,223.81,223.76,109.58]
[1759377248384,11.9493,223.81,223.77,7.7]
[1759377249093,11.9493,223.81,223.76,109.58]
[1759377249293,11.9493,223.81,223.76,110.95710776]
[1759377249483,11.9493,223.81,223.77,7.7]
[1759377249687,11.9493,223.81,223.76,110.95710776]
[1759377249993,11.9493,223.81,223.77,7.7]
[1759377250191,11.9493,223.81,223.76,110.95710776]
[1759377250890,11.9493,223.81,223.77,7.7]
[1759377251090,11.9493,223.81,223.76,110.95710776]
[1759377251288,11.9493,223.81,223.77,7.7]
[1759377251895,11.9493,223.81,223.76,110.95710776]
[1759377252388,11.9493,223.81,223.77,7.7]